Cogmind - Beta 9.6 @@@ ROGUE MODE // 2020.06.23 @ 18:32:01 // Winter2019/RPGLIKE Player: Kenzurith Result: Destroyed by D-53 Grenadier with Mini Grenade Launcher Performance ------------- Evolutions (0) 0 Regions Visited (2) 400 Robots Destroyed (13) 65 Value Destroyed (115) 115 Prototype IDs (2) 40 Alien Tech Used (0) 0 Bonus (-17) -17 TOTAL SCORE: 603 Bonus ------- Friendly Fire -17 Cogmind --------- Core Integrity 0/600 Matter 276/500 Energy 98/100 System Corruption 0% Temperature Cool (0) Movement Rolling (100) Location -10/Mines Parts ------- > --- POWER (1) -------- (None) > --- PROPULSION (1) --- Compact Wheel > --- UTILITY (3) ------ Heat Sink High-capacity Matter Pod > --- WEAPON (3) ------- Assault Rifle Light Assault Rifle Grenade Launcher > --- INVENTORY (1) ---- Mining Claw Peak State ------------ > --- POWER ------------ Light Nuclear Core > --- PROPULSION ------- Compact Wheel > --- UTILITY ---------- Heat Sink High-capacity Matter Pod > --- WEAPON ----------- EM Pulse Gun Assault Rifle Light Assault Rifle > --- INVENTORY -------- Grenade Launcher [Rating: 9] Favorites ----------- Power Ion Engine Engine Ion Engine Power Core Light Nuclear Core Propulsion Compact Wheel Wheel Compact Wheel Utility Heat Sink Device Heat Sink Storage High-capacity Matter Pod Weapon Assault Rifle Energy Gun EM Pulse Gun Ballistic Gun Assault Rifle Launcher Grenade Launcher Build | -11 -10 -10 ------- Run | Scr Mat Min Slots Evolved 4 | 4 . . Power . | . . . Propulsion . | . . . Utility 2 | 2 . . Weapon 2 | 2 . . Parts Attached 9 | 5 4 . Power 2 | 1 1 . Engine 1 | 1 . . Core 1 | . 1 . Reactor . | . . . Propulsion 1 | 1 . . Treads . | . . . Leg . | . . . Wheel 1 | 1 . . Hover . | . . . Flight . | . . . Utility 2 | . 2 . Device 1 | . 1 . Storage 1 | . 1 . Processor . | . . . Hackware . | . . . Protection . | . . . Artifact . | . . . Weapon 4 | 3 1 . Energy Gun 1 | 1 . . Energy Cannon . | . . . Ballistic Gun 2 | 2 . . Ballistic Cannon . | . . . Launcher 1 | . 1 . Special Weapon . | . . . Impact Weapon . | . . . Slashing Weapon . | . . . Piercing Weapon . | . . . Special Melee Weapon . | . . . Unidentified Prototypes . | . . . Parts Lost 1 | . . 1 Power 1 | . . 1 Propulsion . | . . . Utility . | . . . Weapon . | . . . Highest Loss Streak 1 | . . 1 Average Slot Usage (%) 73 | . 70 85 Engine 6 | . 7 . Core 5 | . 4 10 Wheel 12 | . 12 12 Device 6 | . 4 12 Storage 5 | . 3 12 Energy Gun 7 | . 9 . Ballistic Gun 25 | . 25 25 Launcher 4 | . 2 12 Naked Turns . | . . . Heaviest Build 16 | 10 16 16 Greatest Support 16 | 16 16 16 Greatest Overweight (x) . | . . . Average Overweight (x) . | . . . Largest Inventory Capacity 1 | 1 1 1 Average Capacity 1 | 1 1 1 Most Carried 1 | . 1 1 Average Carried . | . . 1 Final Capacity 1 | 1 1 1 Final Carried 1 | . 1 1 Class Distribution -------------------- 52% | Gunner 47% | Mutant Dominant Class ---------------- Gunner | -10/Materials Mutant | -10/Mines Resources | -11 -10 -10 ----------- Run | Scr Mat Min Matter Collected 413 | 250 163 . Remotely . | . . . Salvage Created 176 | . 78 98 Parts 7 | . 7 . Haulers Intercepted . | . . . Recyclers Shooed 1 | . 1 . Parts Field Recycled . | . . . Retrieved Matter . | . . . Parts Self-Destructed . | . . . Prevented . | . . . Kills | -11 -10 -10 ------- Run | Scr Mat Min Combat Hostiles Destroyed 13 | . 3 10 Guns 5 | . 3 2 AOE 8 | . . 8 Classes Destroyed 2 | . 1 1 Grunt 3 | . 3 . Assembled 10 | . . 10 Best Kill Streak 10 | . 3 10 Combat Bots Only 10 | . 3 10 Max Kills in Single Turn 5 | . 1 5 Gunslinging . | . . . Exploded 5 | . . 5 Melee . | . . . Uniques/NPCs Destroyed . | . . . Combat | -11 -10 -10 -------- Run | Scr Mat Min Damage Taken 978 | . 334 644 Core 811 | . 272 539 Absorbed by Shields . | . . . Redirected to Core 584 | . 209 375 Core Remaining (%) 100 | 100 . . Volleys Fired 31 | . 14 17 Largest 3 | . 3 2 Hottest 80 | . 80 40 Shots Fired 67 | . 36 31 Gun 64 | . 36 28 Cannon . | . . . Launcher 3 | . . 3 Special . | . . . Kinetic 50 | . 22 28 Thermal . | . . . Explosive 3 | . . 3 Electromagnetic 14 | . 14 . Robot Hit Streak 8 | . 4 8 Robot Miss Streak 5 | . 4 5 Penetration Max . | . . . Secondary Targets . | . . . Shots Hit Robots 34 | . 20 14 Core Hits 35 | . 6 29 Critical Hits . | . . . Critical Kills . | . . . Critical Parts Destroyed . | . . . Melee Attacks . | . . . Impact . | . . . Slashing . | . . . Piercing . | . . . Sneak Attacks . | . . . Combat Hostiles . | . . . Follow-up Attacks . | . . . Damage Inflicted 836 | . 241 595 Guns 401 | . 241 160 Cannons . | . . . Explosions 435 | . . 435 Melee . | . . . Ramming . | . . . Kinetic 282 | . 122 160 Thermal . | . . . Explosive 435 | . . 435 Electromagnetic 119 | . 119 . Impact . | . . . Slashing . | . . . Piercing . | . . . Highest Corruption . | . . . Average Corruption . | . . . Corruption Purged . | . . . Overload Shots . | . . . Overflow Damage 9 | . . 9 Projectiles . | . . . Explosions 9 | . . 9 Melee . | . . . Knockbacks . | . . . Impact . | . . . Kinetic . | . . . Secondary . | . . . Self-Inflicted Damage 64 | . . 64 Shots 2 | . . 2 Rammed . | . . . Targets Rammed . | . . . Kicked . | . . . Crushed . | . . . Highest Temperature 324 | . 324 . Average Temperature 180 | . 180 . Received Heat Transfer 186 | . 186 . Effects 2 | . 2 . Interference 2 | . 2 . Siege Activations . | . . . Robots Corrupted . | . . . Combat Hostiles . | . . . Parts Fried 1 | . 1 . Impact Corruptions . | . . . Robots Melted . | . . . Combat Hostiles . | . . . Parts Melted . | . . . Heat Transferred . | . . . Parts Sabotaged . | . . . Parts Stolen . | . . . Parts Stripped . | . . . Power Chain Reactions . | . . . Missiles Intercepted . | . . . Alert | -11 -10 -10 ------- Run | Scr Mat Min Peak Influence 101 | . 101 49 Average Influence 46 | . 55 46 Maximum Alert Level . | . . . Low Security (%) 100 | 100 100 100 Level 1 . | . . . Level 2 . | . . . Level 3 . | . . . Level 4 . | . . . Level 5 . | . . . High Security . | . . . Max Security . | . . . Squads Dispatched . | . . . Investigation . | . . . Extermination . | . . . Reinforcement . | . . . Assault . | . . . Garrison . | . . . Intercept . | . . . Construction Impeded . | . . . Haulers Reinforced . | . . . Stealth | -11 -10 -10 --------- Run | Scr Mat Min Distress Signals . | . . . Communications Jammed . | . . . Distress Signals . | . . . Times Spotted 19 | . 6 13 Peak Tracking Total 9 | . 4 9 Tactical Retreats . | . . . Traps | -11 -10 -10 ------- Run | Scr Mat Min Traps Triggered . | . . . Indirectly . | . . . Trap Hack Attempts . | . . . Triggered . | . . . Disarmed . | . . . Reprogrammed . | . . . Reused . | . . . Traps Extracted . | . . . Installed . | . . . Triggered . | . . . Machines | -11 -10 -10 ---------- Run | Scr Mat Min Machines Disabled . | . . . Max in Single Turn . | . . . Machines Sabotaged . | . . . Garrisons Compromised . | . . . Overloaded Fab Kills . | . . . Fab Network Shutdowns . | . . . Hacking | -11 -10 -10 --------- Run | Scr Mat Min Machines Accessed 2 | . 2 . Terminals 2 | . 2 . Fabricators . | . . . Repair Stations . | . . . Recycling Units . | . . . Scanalyzers . | . . . Garrison Access . | . . . Total Hacks 6 | . 6 . Successful 4 | . 4 . Failed 2 | . 2 . Catastrophic . | . . . Database Lockouts . | . . . Manual 5 | . 5 . Terminals 6 | . 6 . Fabricators . | . . . Repair Stations . | . . . Recycling Units . | . . . Scanalyzers . | . . . Garrison Access . | . . . Terminal Hacks 2 | . 2 . Prototype ID Bank 1 | . 1 . Registered Components 1 | . 1 . Fabricator Hacks . | . . . Repair Station Hacks . | . . . Recycling Unit Hacks . | . . . Scanalyzer . | . . . Garrison Access Hacks . | . . . Unauthorized Hacks 2 | . 2 . Terminals 2 | . 2 . Botnet 2 | . 2 . Fabricators . | . . . Repair Stations . | . . . Recycling Units . | . . . Scanalyzers . | . . . Garrison Access . | . . . Data Cores Recovered . | . . . Used . | . . . Hacking Detections 2 | . 2 . Full Trace Events . | . . . Feedback Events . | . . . Feedback Blocked . | . . . Robot Schematics Acquired . | . . . Robots Built . | . . . Matter . | . . . Time . | . . . Total Robot Build Rating . | . . . Part Schematics Acquired . | . . . Parts Built . | . . . Matter . | . . . Time . | . . . Total Part Build Rating . | . . . Parts Repaired . | . . . Time . | . . . Parts Recycled . | . . . Recycled Matter . | . . . Retrieved Matter . | . . . Retrieved Components . | . . . Parts Scanalyzed . | . . . Part Schematics Acquired . | . . . Parts Damaged . | . . . Bothacking | -11 -10 -10 ------------ Run | Scr Mat Min Used RIF Installer . | . . . Robots Hacked . | . . . Non-combat . | . . . Combat . | . . . Robot Hacks Applied . | . . . Relay Couplers Released . | . . . Robots Rewired . | . . . Allies Hacked . | . . . Hacks Repelled . | . . . Allies | -11 -10 -10 -------- Run | Scr Mat Min Total Allies . | . . . Largest Group . | . . . Highest-Rated Group . | . . . Highest-Rated Ally . | . . . Total Orders . | . . . Ally Attacks . | . . . Total Damage . | . . . Kills . | . . . Allies Corrupted . | . . . Allies Melted . | . . . Intel | -11 -10 -10 ------- Run | Scr Mat Min Robot Analysis Total . | . . . Derelict Logs Recovered . | . . . Drone Launches . | . . . Drone Recoveries . | . . . Exploration | -11 -10 -10 ------------- Run | Scr Mat Min Turns Passed 319 | 46 221 52 Spaces Moved 204 | 40 157 7 Core 3 | 3 . . Treads . | . . . Legs . | . . . Wheels 201 | 37 157 7 Hover . | . . . Flight . | . . . Fastest Speed 50 | 50 100 100 Average Speed 99 | 96 100 100 Slowest Speed 100 | 100 100 100 Overloaded Moves . | . . . Propulsion Burnouts . | . . . Robots Hopped . | . . . Cave-ins Triggered . | . . . Exploration Rate (%) 13 | 3 33 4 Regions Visited 2 Branch Regions 1 Pre-discovered Areas . | . . . Known Exits Taken . | . . . Unknown Exits Taken 2 | 1 1 . Scrap Searched . | . . . Spaces Dug . | . . . Terrain Destroyed 13 | . . 13 Melee . | . . . Projectile . | . . . AOE 13 | . . 13 Actions | -11 -10 -10 --------- Run | Scr Mat Min Total 262 | 44 192 26 Wait 4 | . 2 2 Move 202 | 39 156 7 Hop . | . . . Pick Up 3 | . 3 . Fast Attach 8 | 5 3 . Attach 1 | . 1 . Detach . | . . . Swap . | . . . Drop 3 | . 3 . Fire 31 | . 14 17 Melee . | . . . Ram . | . . . Kick . | . . . Crush . | . . . Escape Stasis . | . . . Rewire . | . . . Trap . | . . . Miscellaneous 10 | . 10 . Route ------- -11/Scrapyard -10/Materials -10/Mines History --------- Turn | Location | Event 1 | -11/Scrapyard | Upgraded with Utility slot (x2) 1 | -11/Scrapyard | Upgraded with Weapon slot (x2) 12 | -11/Scrapyard | Discovered new exit (range 16) 47 | -11/Scrapyard | Entered Materials 240 | -10/Materials | Discovered new exit (range 11) 268 | -10/Materials | Entered Mines 269 | -10/Mines | Assembled infested the area 274 | -10/Mines | Assisted by a Guerilla fighting off Assembled 313 | -10/Mines | Core integrity fell below 50% 318 | -10/Mines | Core integrity fell below 20% 320 | -10/Mines | Destroyed by D-53 Grenadier with Mini Grenade Launcher Last Messages --------------- 00282_ as-53142 destroyed. 00282_ as-62888 destroyed. 00282_ as-14645 destroyed. 00282_ as-46481 destroyed. 00282_ R-06 Scavenger destroyed. 00284_ Destroyed Asb. Hover Unit. 00284_ as-91518 destroyed. 00284_ as-14638 destroyed. 00284_ as-50936 destroyed. 00287_ Knocked back. 00297_ Destroyed Asb. Hover Unit. 00300_ as-04257 destroyed. 00303_ as-19415 destroyed. 00306_ Knocked back. 00310_ C-30 ARC bursts open, deploying its payload. 00310_ D-53 Grenadier unfolds itself. 00310_ as-46904 destroyed. 00311_ A-02 Transporter destroyed. 00317_ Lgt. Nuclear Core destroyed. 00319_ The unstable cave ceiling collapses. Map ----- +----------------------------------------------------+ | ?????????????????????????????????????????????????? | | ?????????????????????????????????????????????????? | | ?????????????????????????????????????????????????? | | ?????????????????????????????????????????????????? | | ?????????????????????????????????????????????????? | | ?????????????????????????????????????????????????? | | ?????????????????????????????????????????????????? | | ?????????????????????????????????????????????????? | | ?????????????????????????????????????????????????? | | ?????????????????????????????????????????????????? | | ?????????????????????????????????????????????????? | | ?????????????????????????????????????????????????? | | ?????????????????????????????????????????????????? | | ?????????????????????????????????????????????????? | | ??????????????????????####???????????????????????? | | ???????????????????####!% ##?????????????????????? | | ???????????????????# # !#?????????????????????? | | ?????????????????### % ####??????????????????? | | ?????????????????? % %???????????????????? | | ???????????????????? %%% d #???????????????????? | | ????????????????????? d #???????????????????? | | ?????????????????????# = #???????????????????? | | ????????????????????## ##??????????????????? | | ????????????????????# #??????????????????? | | ????????????????????# #??????????????????? | | ????????????????????# @ #??????????????????? | | ????????????????????# #??????????????????? | | ????????????????????# #??????????????????? | | ????????????????????## ##??????????????????? | | ?????????????????????## ##???????????????????? | | ??????????????????????#######????????????????????? | | | | | | | | | | | | | | | | | | | | | | | | | | | | | | | | | | | | | | | +----------------------------------------------------+ Best States ------------- Heat Dissipation 35 Energy Generation 14 Energy Capacity 250 Matter Stores 367 Matter Capacity 500 Sight Range 16 Terrain Scan Density 10 Evasion (%) 40 Item Schematics ----------------- None Robot Schematics ------------------ None Fabricated ------------ Nothing Alien Tech Used ----------------- None Achievements -------------- None Challenges ------------ None RPGLIKE | -11 -10 -10 --------- Run | Scr Mat Min Levels Raised . | . . . XP Earned 3885 | 3000 385 500 XP Spent 2850 | 2850 . . Upgrades 5 | 5 . . Utility Slot 2 | 2 . . Weapon Slot 2 | 2 . . Inventory Capacity 1 | 1 . . Protomatter Created 80 | . 70 10 Integrity Restored 210 | . 210 . Core 210 | . 210 . Protomatter Decayed . | . . . Game ------ Seed ChargeUtilityVibroblade Manual? 0 Play Time 00:05:25 Cumulative 154.1 hours Start 2020.06.23 @ 18:27:22 End 2020.06.23 @ 18:32:01 Sessions 1 Manual Loads 0 Difficulty Rogue Special Mode Winter2019/RPGLIKE Game No. 83 Rogue 81 Adventurer 1 Explorer 1 Win Type - Total 2 Types 2/0/0/0/0/0/0 Lore% 58 Gallery% 71 Achievement% 53 Wizard Run 0 Options --------- ASCII 0 Keyboard 1 Movement Numpad Keybinds 0 Fullscreen 2 Font 24/Terminus Map View 76x50 Tactical HUD 1 Map Filters NONE Filters NONE Steam 1 RUN: 5b282286-c719-49d9-80ff-655dcc3b742f